[Event "Late-Titled-Tuesday-Blitz-October-10-2023"]
[Site "Chess.com"]
[Date "2023.10.10"]
[Round "2"]
[White "HeinichessPY"]
[Black "MalyDominator"]
[Result "0-1"]
[WhiteElo "2167"]
[BlackElo "2450"]
[TimeControl "180+1"]
[EndTime "14:17:31 PDT"]
[Termination "MalyDominator won by resignation"]

1. Nf3 {[%clk 0:02:57.1]} 1... Nf6 {[%clk 0:02:59.3]} 2. g3 {[%clk 0:02:55.9]}
2... g6 {[%clk 0:02:59]} 3. Bg2 {[%clk 0:02:56.3]} 3... Bg7 {[%clk 0:02:59.7]}
4. O-O {[%clk 0:02:56.8]} 4... O-O {[%clk 0:03:00.4]} 5. d3 {[%clk 0:02:57.1]}
5... d6 {[%clk 0:03:01.2]} 6. Nbd2 {[%clk 0:02:56.8]} 6... c5 {[%clk 0:03:01.8]}
7. e4 {[%clk 0:02:57.2]} 7... Nc6 {[%clk 0:03:02.4]} 8. c3 {[%clk 0:02:55.5]}
8... e5 {[%clk 0:03:00.5]} 9. Ng5 {[%clk 0:02:52.4]} 9... h6 {[%clk 0:02:58.8]}
10. Nh3 {[%clk 0:02:52.8]} 10... d5 {[%clk 0:02:57]} 11. f4 {[%clk 0:02:52.2]}
11... dxe4 {[%clk 0:02:53.3]} 12. dxe4 {[%clk 0:02:50.4]} 12... Ng4 {[%clk
0:02:48.9]} 13. Qe2 {[%clk 0:02:49.6]} 13... exf4 {[%clk 0:02:45.7]} 14. gxf4
{[%clk 0:02:47.8]} 14... Qc7 {[%clk 0:02:31.9]} 15. Nf3 {[%clk 0:02:37.9]} 15...
Re8 {[%clk 0:02:30.9]} 16. f5 {[%clk 0:02:22.6]} 16... Bxf5 {[%clk 0:02:27.9]}
17. Bf4 {[%clk 0:02:22]} 17... Qb6 {[%clk 0:02:26.1]} 18. Nh4 {[%clk 0:02:15.1]}
18... Bd7 {[%clk 0:01:41.8]} 19. Rad1 {[%clk 0:02:11.9]} 19... Nce5 {[%clk
0:01:40.6]} 20. b3 {[%clk 0:01:59.7]} 20... c4+ {[%clk 0:01:38.3]} 21. Kh1
{[%clk 0:01:58.9]} 21... cxb3 {[%clk 0:01:38.7]} 22. axb3 {[%clk 0:01:59.1]}
22... Qxb3 {[%clk 0:01:36.4]} 23. Bg3 {[%clk 0:01:42]} 23... Bb5 {[%clk
0:01:34.8]} 24. Qd2 {[%clk 0:00:55.7]} 24... Bxf1 {[%clk 0:01:33.8]} 25. Rxf1
{[%clk 0:00:54.8]} 25... Rad8 {[%clk 0:01:33.8]} 26. Qe1 {[%clk 0:00:55.2]}
26... Rd3 {[%clk 0:01:17.5]} 27. Nf3 {[%clk 0:00:55.2]} 27... Qxc3 {[%clk
0:01:13.4]} 28. Nf4 {[%clk 0:00:38.5]} 28... Qxe1 {[%clk 0:01:09.6]} 29. Nxe1
{[%clk 0:00:35.7]} 29... Rd1 {[%clk 0:01:05.5]} 30. Nd5 {[%clk 0:00:29.7]} 30...
a5 {[%clk 0:00:55.5]} 31. h3 {[%clk 0:00:27.7]} 31... Rxd5 {[%clk 0:00:38.2]}
32. exd5 {[%clk 0:00:24.3]} 32... Ne3 {[%clk 0:00:38.1]} 33. Rf2 {[%clk
0:00:20.5]} 33... Nxg2 {[%clk 0:00:36.5]} 34. Nxg2 {[%clk 0:00:19.4]} 34... a4
{[%clk 0:00:36.1]} 35. Ra2 {[%clk 0:00:19.6]} 35... b5 {[%clk 0:00:35.9]} 36.
Ne3 {[%clk 0:00:19.3]} 36... Nd3 {[%clk 0:00:34]} 37. Nc2 {[%clk 0:00:13.4]}
37... Rd8 {[%clk 0:00:30]} 38. d6 {[%clk 0:00:13.5]} 38... Bf8 {[%clk
0:00:30.2]} 39. Ne1 {[%clk 0:00:09.5]} 39... Nxe1 {[%clk 0:00:29.2]} 40. Bxe1
{[%clk 0:00:10.4]} 40... Rxd6 {[%clk 0:00:29.1]} 41. Rb2 {[%clk 0:00:10.9]}
41... Rd1 {[%clk 0:00:28.8]} 42. Re2 {[%clk 0:00:08.8]} 42... Bb4 {[%clk
0:00:28.4]} 43. Kg2 {[%clk 0:00:07.6]} 43... Rxe1 {[%clk 0:00:28.2]} 44. Rb2
{[%clk 0:00:08.2]} 44... Re4 {[%clk 0:00:27.4]} 45. Kf3 {[%clk 0:00:08.3]} 45...
Rc4 {[%clk 0:00:27.7]} 46. Rf2 {[%clk 0:00:08.5]} 46... a3 {[%clk 0:00:27.8]}
0-1

[Event "Late-Titled-Tuesday-Blitz-October-10-2023"]
[Site "Chess.com"]
[Date "2023.10.10"]
[Round "2"]
[White "TanitoluwaAps116"]
[Black "FM_Kappeler"]
[Result "1-0"]
[WhiteElo "2689"]
[BlackElo "2278"]
[TimeControl "180+1"]
[EndTime "14:17:33 PDT"]
[Termination "TanitoluwaAps116 won by checkmate"]

1. e4 {[%clk 0:02:48.4]} 1... c5 {[%clk 0:02:59]} 2. Nf3 {[%clk 0:02:47.7]} 2...
e6 {[%clk 0:02:59.2]} 3. c3 {[%clk 0:02:47.5]} 3... d5 {[%clk 0:02:58.2]} 4.
exd5 {[%clk 0:02:48.4]} 4... exd5 {[%clk 0:02:58.1]} 5. Bb5+ {[%clk 0:02:48.3]}
5... Nc6 {[%clk 0:02:57.7]} 6. O-O {[%clk 0:02:47.2]} 6... Bd6 {[%clk
0:02:56.6]} 7. Re1+ {[%clk 0:02:48.1]} 7... Ne7 {[%clk 0:02:55]} 8. d4 {[%clk
0:02:49]} 8... O-O {[%clk 0:02:53.8]} 9. Bg5 {[%clk 0:02:37.6]} 9... cxd4 {[%clk
0:02:27.6]} 10. Nxd4 {[%clk 0:02:30.4]} 10... Nxd4 {[%clk 0:02:26.4]} 11. Qxd4
{[%clk 0:02:20]} 11... h6 {[%clk 0:02:08]} 12. Bf4 {[%clk 0:01:56.7]} 12... Nf5
{[%clk 0:01:54.3]} 13. Qd2 {[%clk 0:01:53.5]} 13... Qb6 {[%clk 0:01:45.1]} 14.
Bxd6 {[%clk 0:01:47.5]} 14... Nxd6 {[%clk 0:01:44.3]} 15. Bd3 {[%clk 0:01:46.1]}
15... Bf5 {[%clk 0:01:32]} 16. Bxf5 {[%clk 0:01:29.2]} 16... Nxf5 {[%clk
0:01:31.6]} 17. Na3 {[%clk 0:01:20]} 17... Rad8 {[%clk 0:01:26.5]} 18. Re5
{[%clk 0:01:16.1]} 18... Qg6 {[%clk 0:01:15.9]} 19. Qd3 {[%clk 0:01:05.2]} 19...
Nh4 {[%clk 0:01:10.7]} 20. Qh3 {[%clk 0:00:45.2]} 20... Qf6 {[%clk 0:00:50.2]}
21. Rae1 {[%clk 0:00:39.5]} 21... Ng6 {[%clk 0:00:47.2]} 22. Rf5 {[%clk
0:00:37.9]} 22... Qb6 {[%clk 0:00:46.2]} 23. Re2 {[%clk 0:00:20.6]} 23... Rfe8
{[%clk 0:00:45.7]} 24. Qd3 {[%clk 0:00:14.2]} 24... d4 {[%clk 0:00:34.3]} 25.
cxd4 {[%clk 0:00:08.8]} 25... Rxe2 {[%clk 0:00:26.8]} 26. Qxe2 {[%clk
0:00:09.7]} 26... Qxd4 {[%clk 0:00:26.2]} 27. g3 {[%clk 0:00:09.7]} 27... Qd2
{[%clk 0:00:18.4]} 28. Qxd2 {[%clk 0:00:06.9]} 28... Rxd2 {[%clk 0:00:18]} 29.
Rb5 {[%clk 0:00:07.6]} 29... b6 {[%clk 0:00:18.2]} 30. Nc4 {[%clk 0:00:07.5]}
30... Rc2 {[%clk 0:00:17.5]} 31. Ne3 {[%clk 0:00:06.3]} 31... Rd2 {[%clk
0:00:16.5]} 32. Kg2 {[%clk 0:00:06.3]} 32... Ne7 {[%clk 0:00:16.3]} 33. a4
{[%clk 0:00:06.6]} 33... Nc6 {[%clk 0:00:16.3]} 34. b4 {[%clk 0:00:05.4]} 34...
Rb2 {[%clk 0:00:15.2]} 35. Nd5 {[%clk 0:00:05.4]} 35... Nd4 {[%clk 0:00:15.1]}
36. Ne7+ {[%clk 0:00:02]} 36... Kf8 {[%clk 0:00:13.1]} 37. Re5 {[%clk
0:00:02.9]} 37... Rxb4 {[%clk 0:00:11.7]} 38. Nd5 {[%clk 0:00:02.7]} 38... Rxa4
{[%clk 0:00:11.5]} 39. Re4 {[%clk 0:00:03.1]} 39... b5 {[%clk 0:00:09.1]} 40.
Nc7 {[%clk 0:00:03.4]} 40... a6 {[%clk 0:00:07.2]} 41. Re8# {[%clk 0:00:03.2]}
1-0

[Event "Late-Titled-Tuesday-Blitz-October-10-2023"]
[Site "Chess.com"]
[Date "2023.10.10"]
[Round "2"]
[White "midedu"]
[Black "Rutricks"]
[Result "0-1"]
[WhiteElo "2070"]
[BlackElo "2670"]
[TimeControl "180+1"]
[EndTime "14:17:35 PDT"]
[Termination "Rutricks won by resignation"]

1. e4 {[%clk 0:03:00.9]} 1... g6 {[%clk 0:03:00.9]} 2. d4 {[%clk 0:03:00.2]}
2... Bg7 {[%clk 0:03:00.6]} 3. g3 {[%clk 0:03:00.5]} 3... c6 {[%clk 0:03:00.3]}
4. Bg2 {[%clk 0:03:00.5]} 4... d5 {[%clk 0:03:01.2]} 5. Nc3 {[%clk 0:03:00]}
5... dxe4 {[%clk 0:03:00.3]} 6. Nge2 {[%clk 0:02:59]} 6... Bg4 {[%clk
0:03:00.5]} 7. Bxe4 {[%clk 0:02:54.2]} 7... Nf6 {[%clk 0:02:58.9]} 8. Bg2 {[%clk
0:02:53.8]} 8... O-O {[%clk 0:02:58.9]} 9. h3 {[%clk 0:02:52.8]} 9... Bf5 {[%clk
0:02:55]} 10. O-O {[%clk 0:02:52.5]} 10... Na6 {[%clk 0:02:48.2]} 11. a3 {[%clk
0:02:49]} 11... Nc7 {[%clk 0:02:47.6]} 12. Kh2 {[%clk 0:02:48.1]} 12... Ncd5
{[%clk 0:02:41.4]} 13. Re1 {[%clk 0:02:39.6]} 13... h5 {[%clk 0:02:33.3]} 14.
Bg5 {[%clk 0:02:36.6]} 14... Qc7 {[%clk 0:02:31.8]} 15. Qd2 {[%clk 0:02:29.4]}
15... Rfe8 {[%clk 0:02:30.2]} 16. Nf4 {[%clk 0:02:20.8]} 16... Nxc3 {[%clk
0:02:26]} 17. bxc3 {[%clk 0:02:19.2]} 17... Nh7 {[%clk 0:02:26]} 18. Nd3 {[%clk
0:02:18.1]} 18... Nxg5 {[%clk 0:02:19.5]} 19. Qxg5 {[%clk 0:02:17.7]} 19... Qa5
{[%clk 0:02:13]} 20. Qd2 {[%clk 0:02:05.8]} 20... Bxd4 {[%clk 0:02:08]} 21. Nb4
{[%clk 0:01:54.2]} 21... Bf6 {[%clk 0:02:02.9]} 22. Re3 {[%clk 0:01:47.4]} 22...
Rad8 {[%clk 0:01:38.8]} 23. Qe1 {[%clk 0:01:46.8]} 23... Qc5 {[%clk 0:01:38.6]}
24. Rb1 {[%clk 0:01:29.1]} 24... Rd7 {[%clk 0:01:29.2]} 25. Rb3 {[%clk
0:01:20.3]} 25... Red8 {[%clk 0:01:09]} 26. Bf3 {[%clk 0:01:13.2]} 26... h4
{[%clk 0:00:41]} 27. g4 {[%clk 0:01:09.2]} 27... Be6 {[%clk 0:00:41.3]} 28. Rxe6
{[%clk 0:01:06.4]} 28... fxe6 {[%clk 0:00:42.2]} 29. Qxe6+ {[%clk 0:01:05.9]}
29... Kg7 {[%clk 0:00:42.7]} 30. Kg2 {[%clk 0:00:58.3]} 30... Rd2 {[%clk
0:00:42.6]} 31. Be2 {[%clk 0:00:54.5]} 31... a5 {[%clk 0:00:08]} 32. Nd3 {[%clk
0:00:53.7]} 32... Qd6 {[%clk 0:00:06.6]} 33. Qxd6 {[%clk 0:00:47.5]} 33... Rxd6
{[%clk 0:00:07.5]} 34. Bf3 {[%clk 0:00:45.9]} 34... Rxc2 {[%clk 0:00:05.9]} 35.
Nf4 {[%clk 0:00:33.1]} 35... Be5 {[%clk 0:00:05.5]} 36. Rxb7 {[%clk 0:00:28.4]}
36... Bxf4 {[%clk 0:00:05]} 37. Rxe7+ {[%clk 0:00:29]} 37... Kf6 {[%clk
0:00:04.7]} 38. Re4 {[%clk 0:00:26.8]} 38... Bg3 {[%clk 0:00:04.7]} 39. g5+
{[%clk 0:00:25.9]} 39... Kxg5 {[%clk 0:00:04]} 40. Rg4+ {[%clk 0:00:24.3]} 40...
Kh6 {[%clk 0:00:04.4]} 41. Rxg6+ {[%clk 0:00:21.7]} 41... Rxg6 {[%clk
0:00:04.1]} 42. Be4 {[%clk 0:00:21.9]} 42... Rxf2+ {[%clk 0:00:04.4]} 43. Kg1
{[%clk 0:00:21.9]} 43... Rd6 {[%clk 0:00:05.3]} 0-1

[Event "Late-Titled-Tuesday-Blitz-October-10-2023"]
[Site "Chess.com"]
[Date "2023.10.10"]
[Round "2"]
[White "Grischuk"]
[Black "aa175"]
[Result "1-0"]
[WhiteElo "2980"]
[BlackElo "2604"]
[TimeControl "180+1"]
[EndTime "14:17:37 PDT"]
[Termination "Grischuk won by resignation"]

1. d4 {[%clk 0:02:57.5]} 1... Nf6 {[%clk 0:02:57.8]} 2. c4 {[%clk 0:02:57.6]}
2... g6 {[%clk 0:02:58.5]} 3. h4 {[%clk 0:02:56.3]} 3... c5 {[%clk 0:02:51.3]}
4. d5 {[%clk 0:02:56.3]} 4... e6 {[%clk 0:02:48.7]} 5. dxe6 {[%clk 0:02:48.8]}
5... fxe6 {[%clk 0:02:46.6]} 6. Nf3 {[%clk 0:02:33.9]} 6... Bg7 {[%clk
0:02:46.5]} 7. Nc3 {[%clk 0:02:31.1]} 7... Nc6 {[%clk 0:02:41.8]} 8. e4 {[%clk
0:02:17.1]} 8... O-O {[%clk 0:02:40.8]} 9. Be2 {[%clk 0:02:14.5]} 9... Qc7
{[%clk 0:02:33.5]} 10. g3 {[%clk 0:02:09.1]} 10... Nd4 {[%clk 0:02:28.5]} 11.
Bf4 {[%clk 0:02:03]} 11... Qb6 {[%clk 0:02:17.6]} 12. Qd2 {[%clk 0:02:03]} 12...
Nh5 {[%clk 0:01:55.9]} 13. O-O-O {[%clk 0:01:03.6]} 13... Nxf4 {[%clk 0:00:59]}
14. gxf4 {[%clk 0:01:04.5]} 14... Rxf4 {[%clk 0:00:46.5]} 15. Rh3 {[%clk
0:00:26.5]} 15... d5 {[%clk 0:00:35.1]} 16. Rg3 {[%clk 0:00:12.4]} 16... dxe4
{[%clk 0:00:20.3]} 17. Nxd4 {[%clk 0:00:12]} 17... cxd4 {[%clk 0:00:20.4]} 18.
Qxf4 {[%clk 0:00:11.9]} 18... dxc3 {[%clk 0:00:19.7]} 19. bxc3 {[%clk
0:00:12.8]} 19... e5 {[%clk 0:00:19]} 20. Qe3 {[%clk 0:00:11.6]} 20... Qa5
{[%clk 0:00:09]} 21. h5 {[%clk 0:00:08.9]} 21... Qa3+ {[%clk 0:00:06.6]} 22. Kb1
{[%clk 0:00:08.1]} 22... Bf5 {[%clk 0:00:07.1]} 23. Bg4 {[%clk 0:00:05.9]} 23...
Bh6 {[%clk 0:00:06.3]} 24. Qxh6 {[%clk 0:00:04.4]} 24... Bxg4 {[%clk 0:00:04.9]}
25. hxg6 {[%clk 0:00:02.6]} 25... hxg6 {[%clk 0:00:01.5]} 26. Qxg6+ {[%clk
0:00:02.6]} 26... Kf8 {[%clk 0:00:02.1]} 27. Qf6+ {[%clk 0:00:02.6]} 27... Ke8
{[%clk 0:00:02.1]} 28. Qxe5+ {[%clk 0:00:02.9]} 28... Qe7 {[%clk 0:00:01.5]} 29.
Qxe7+ {[%clk 0:00:03.2]} 29... Kxe7 {[%clk 0:00:02.1]} 30. Rxg4 {[%clk
0:00:04.1]} 30... Kf6 {[%clk 0:00:02.7]} 31. Rxe4 {[%clk 0:00:04.4]} 31... Rc8
{[%clk 0:00:03]} 32. Red4 {[%clk 0:00:04.7]} 32... Ke5 {[%clk 0:00:03.3]} 33.
Kc2 {[%clk 0:00:04.5]} 33... Rf8 {[%clk 0:00:03.4]} 34. f3 {[%clk 0:00:05.4]}
34... Rxf3 {[%clk 0:00:03.6]} 35. Rd5+ {[%clk 0:00:06]} 35... Ke6 {[%clk
0:00:04]} 36. Rd6+ {[%clk 0:00:06.5]} 36... Ke5 {[%clk 0:00:04.6]} 37. R1d5+
{[%clk 0:00:06.5]} 37... Ke4 {[%clk 0:00:04.9]} 38. Rd4+ {[%clk 0:00:07.4]}
38... Ke5 {[%clk 0:00:05.5]} 39. Rd7 {[%clk 0:00:08.1]} 39... b6 {[%clk
0:00:05.3]} 40. Rxa7 {[%clk 0:00:07.8]} 40... Rf1 {[%clk 0:00:05.1]} 41. Rd5+
{[%clk 0:00:07.9]} 41... Ke6 {[%clk 0:00:05.2]} 42. Rb7 {[%clk 0:00:08.1]} 42...
Rf2+ {[%clk 0:00:05.1]} 43. Rd2 {[%clk 0:00:07.8]} 1-0

[Event "Late-Titled-Tuesday-Blitz-October-10-2023"]
[Site "Chess.com"]
[Date "2023.10.10"]
[Round "2"]
[White "NelsonLinda"]
[Black "Hrant_ChessMood"]
[Result "0-1"]
[WhiteElo "2588"]
[BlackElo "2930"]
[TimeControl "180+1"]
[EndTime "14:17:38 PDT"]
[Termination "Hrant_ChessMood won by resignation"]

1. b3 {[%clk 0:03:00.9]} 1... d5 {[%clk 0:02:59.3]} 2. Bb2 {[%clk 0:03:00.8]}
2... c5 {[%clk 0:02:57.3]} 3. Nf3 {[%clk 0:02:57.7]} 3... Nc6 {[%clk 0:02:57.2]}
4. g3 {[%clk 0:02:55.8]} 4... f6 {[%clk 0:02:55.7]} 5. d4 {[%clk 0:02:55.7]}
5... cxd4 {[%clk 0:02:55.3]} 6. Nxd4 {[%clk 0:02:56.6]} 6... e5 {[%clk
0:02:55.4]} 7. Nxc6 {[%clk 0:02:57.2]} 7... bxc6 {[%clk 0:02:56.3]} 8. Bg2
{[%clk 0:02:57.5]} 8... Be6 {[%clk 0:02:56.1]} 9. O-O {[%clk 0:02:54.6]} 9...
Bc5 {[%clk 0:02:54.4]} 10. c4 {[%clk 0:02:50.9]} 10... Ne7 {[%clk 0:02:54.1]}
11. cxd5 {[%clk 0:02:45.2]} 11... cxd5 {[%clk 0:02:54]} 12. Ba3 {[%clk
0:02:36.1]} 12... Bxa3 {[%clk 0:02:45]} 13. Nxa3 {[%clk 0:02:37]} 13... O-O
{[%clk 0:02:45.1]} 14. Nc2 {[%clk 0:02:27.2]} 14... Rc8 {[%clk 0:02:43.5]} 15.
Rc1 {[%clk 0:02:26.2]} 15... Qa5 {[%clk 0:02:42.5]} 16. Ne3 {[%clk 0:01:45.1]}
16... d4 {[%clk 0:02:37.5]} 17. Nc4 {[%clk 0:01:44.5]} 17... Bxc4 {[%clk
0:02:23]} 18. bxc4 {[%clk 0:01:44.2]} 18... Qxa2 {[%clk 0:02:15.6]} 19. Qd3
{[%clk 0:01:40.3]} 19... Qa5 {[%clk 0:02:09]} 20. Ra1 {[%clk 0:01:37.5]} 20...
Qc5 {[%clk 0:02:07.5]} 21. Rfb1 {[%clk 0:01:30.8]} 21... Kh8 {[%clk 0:01:56.7]}
22. Ra4 {[%clk 0:01:27.9]} 22... a6 {[%clk 0:01:45.5]} 23. Rba1 {[%clk
0:01:26.5]} 23... Rc7 {[%clk 0:01:36.5]} 24. h4 {[%clk 0:01:23.1]} 24... Rfc8
{[%clk 0:01:33.3]} 25. Be4 {[%clk 0:01:21.1]} 25... g6 {[%clk 0:01:27.5]} 26. h5
{[%clk 0:01:17.1]} 26... f5 {[%clk 0:01:26.4]} 27. Bg2 {[%clk 0:01:14.2]} 27...
e4 {[%clk 0:01:26.6]} 28. Qd2 {[%clk 0:01:13.6]} 28... Qe5 {[%clk 0:01:20.1]}
29. hxg6 {[%clk 0:01:12.2]} 29... hxg6 {[%clk 0:01:15.7]} 30. c5 {[%clk
0:01:03.6]} 30... Rxc5 {[%clk 0:00:59.1]} 31. Rxd4 {[%clk 0:01:03.6]} 31... a5
{[%clk 0:00:50.4]} 32. e3 {[%clk 0:00:52.5]} 32... Kg7 {[%clk 0:00:50.1]} 33.
Rda4 {[%clk 0:00:45.2]} 33... Rd5 {[%clk 0:00:45.8]} 34. Qe1 {[%clk 0:00:25.7]}
34... Rcc5 {[%clk 0:00:45.3]} 35. Bf1 {[%clk 0:00:24.6]} 35... Nc6 {[%clk
0:00:42.5]} 36. Bc4 {[%clk 0:00:24.7]} 36... Rd6 {[%clk 0:00:40.9]} 37. Be2
{[%clk 0:00:18]} 37... Nb4 {[%clk 0:00:40.9]} 38. Qb1 {[%clk 0:00:16.1]} 38...
Rd2 {[%clk 0:00:39]} 39. Bf1 {[%clk 0:00:16.4]} 39... Rb2 {[%clk 0:00:30.6]} 40.
Qd1 {[%clk 0:00:15.6]} 40... Rd5 {[%clk 0:00:31.2]} 41. Qc1 {[%clk 0:00:13.8]}
41... Rc2 {[%clk 0:00:31.2]} 42. Qb1 {[%clk 0:00:13.7]} 42... Kh6 {[%clk
0:00:23.9]} 43. Qb3 {[%clk 0:00:12.8]} 43... Rc3 {[%clk 0:00:17.7]} 44. Qb2
{[%clk 0:00:13.1]} 44... Rcc5 {[%clk 0:00:15.8]} 45. Kg2 {[%clk 0:00:11.4]}
45... Qxb2 {[%clk 0:00:15.5]} 0-1

[Event "Late-Titled-Tuesday-Blitz-October-10-2023"]
[Site "Chess.com"]
[Date "2023.10.10"]
[Round "2"]
[White "koncheto"]
[Black "Witty_Alien"]
[Result "1-0"]
[WhiteElo "2491"]
[BlackElo "2216"]
[TimeControl "180+1"]
[EndTime "14:17:39 PDT"]
[Termination "koncheto won on time"]

1. e4 {[%clk 0:03:00.9]} 1... c5 {[%clk 0:02:45.9]} 2. Nf3 {[%clk 0:02:58.9]}
2... d6 {[%clk 0:02:44.3]} 3. d4 {[%clk 0:02:59]} 3... cxd4 {[%clk 0:02:43.4]}
4. Nxd4 {[%clk 0:02:59.9]} 4... Nf6 {[%clk 0:02:43.1]} 5. f3 {[%clk 0:02:54.7]}
5... e5 {[%clk 0:02:32.6]} 6. Nb3 {[%clk 0:02:54.3]} 6... d5 {[%clk 0:02:32.5]}
7. Bg5 {[%clk 0:02:53.4]} 7... d4 {[%clk 0:02:32.4]} 8. c3 {[%clk 0:02:53]} 8...
Nc6 {[%clk 0:02:29.8]} 9. Bb5 {[%clk 0:02:52.6]} 9... Be7 {[%clk 0:02:23.7]} 10.
cxd4 {[%clk 0:02:51.1]} 10... exd4 {[%clk 0:02:21.4]} 11. Qxd4 {[%clk
0:02:50.9]} 11... Bd7 {[%clk 0:02:14.5]} 12. Bxc6 {[%clk 0:02:50.7]} 12... Bxc6
{[%clk 0:02:10.9]} 13. Qxd8+ {[%clk 0:02:50.6]} 13... Rxd8 {[%clk 0:02:11.8]}
14. Nc3 {[%clk 0:02:49.6]} 14... b5 {[%clk 0:02:00.3]} 15. O-O {[%clk
0:02:37.9]} 15... b4 {[%clk 0:02:00.2]} 16. Ne2 {[%clk 0:02:37.8]} 16... Bb5
{[%clk 0:01:56.6]} 17. Kf2 {[%clk 0:02:30.5]} 17... a5 {[%clk 0:01:48.2]} 18.
Be3 {[%clk 0:02:26.6]} 18... a4 {[%clk 0:01:48]} 19. Nbd4 {[%clk 0:02:21.1]}
19... Bd7 {[%clk 0:01:42.3]} 20. Rac1 {[%clk 0:02:19.7]} 20... O-O {[%clk
0:01:42.1]} 21. Nc6 {[%clk 0:02:19.7]} 21... Bxc6 {[%clk 0:01:41.6]} 22. Rxc6
{[%clk 0:02:20.6]} 22... Rd3 {[%clk 0:01:33.9]} 23. Rfc1 {[%clk 0:02:06.6]}
23... a3 {[%clk 0:01:25.9]} 24. bxa3 {[%clk 0:02:05]} 24... Rxa3 {[%clk
0:01:24.2]} 25. R1c2 {[%clk 0:02:05.2]} 25... h6 {[%clk 0:01:20.7]} 26. Nd4
{[%clk 0:02:01.4]} 26... Re8 {[%clk 0:01:12.4]} 27. Nf5 {[%clk 0:01:56.7]} 27...
Bf8 {[%clk 0:01:12.7]} 28. Nxh6+ {[%clk 0:01:54.1]} 28... Kh7 {[%clk 0:01:05.9]}
29. Nxf7 {[%clk 0:01:49.1]} 29... Kg6 {[%clk 0:00:53.7]} 30. Nd6 {[%clk
0:01:39.4]} 30... Re6 {[%clk 0:00:50.5]} 31. Nb5 {[%clk 0:01:32.1]} 31... Rxa2
{[%clk 0:00:46.1]} 32. Rxa2 {[%clk 0:01:13.3]} 32... Rxc6 {[%clk 0:00:45.8]} 33.
Rb2 {[%clk 0:01:13.8]} 33... Nd7 {[%clk 0:00:34.9]} 34. Nd4 {[%clk 0:01:04.1]}
34... Rc4 {[%clk 0:00:33.6]} 35. Nc2 {[%clk 0:00:56.2]} 35... Ne5 {[%clk
0:00:33.5]} 36. Ke2 {[%clk 0:00:52.3]} 36... b3 {[%clk 0:00:32.4]} 37. Nd4
{[%clk 0:00:48.9]} 37... Bc5 {[%clk 0:00:11]} 38. Nxb3 {[%clk 0:00:43]} 38...
Bxe3 {[%clk 0:00:05.5]} 39. Kxe3 {[%clk 0:00:43.9]} 39... Rb4 {[%clk 0:00:04.3]}
40. Rb1 {[%clk 0:00:36.7]} 40... Nc4+ {[%clk 0:00:03]} 41. Kf4 {[%clk
0:00:37.3]} 41... Na5 {[%clk 0:00:01.6]} 42. Nd2 {[%clk 0:00:32.8]} 42... Rxb1
{[%clk 0:00:02.5]} 43. Nxb1 {[%clk 0:00:32.9]} 43... Nc4 {[%clk 0:00:02.3]} 44.
Nc3 {[%clk 0:00:31.3]} 44... Kh5 {[%clk 0:00:02.3]} 45. Kg3 {[%clk 0:00:24.2]}
45... g5 {[%clk 0:00:02.5]} 46. Nd5 {[%clk 0:00:22.2]} 46... Ne3 {[%clk
0:00:02.2]} 47. Nxe3 {[%clk 0:00:22.1]} 1-0

[Event "Late-Titled-Tuesday-Blitz-October-10-2023"]
[Site "Chess.com"]
[Date "2023.10.10"]
[Round "2"]
[White "Ali_rastbod"]
[Black "schack_vit"]
[Result "1-0"]
[WhiteElo "2744"]
[BlackElo "2462"]
[TimeControl "180+1"]
[EndTime "14:17:41 PDT"]
[Termination "Ali_rastbod won by resignation"]

1. e4 {[%clk 0:02:59.2]} 1... c5 {[%clk 0:02:59.6]} 2. Nf3 {[%clk 0:02:57.8]}
2... d6 {[%clk 0:03:00]} 3. Bb5+ {[%clk 0:02:56.9]} 3... Nd7 {[%clk 0:03:00.3]}
4. c4 {[%clk 0:02:57]} 4... Nf6 {[%clk 0:02:58.8]} 5. Nc3 {[%clk 0:02:56]} 5...
g6 {[%clk 0:02:59.1]} 6. d3 {[%clk 0:02:50.8]} 6... Bg7 {[%clk 0:02:59.2]} 7. h3
{[%clk 0:02:50.2]} 7... O-O {[%clk 0:02:59.5]} 8. Ba4 {[%clk 0:02:50.7]} 8... e6
{[%clk 0:02:51.7]} 9. Bf4 {[%clk 0:02:43.7]} 9... Nb6 {[%clk 0:02:51.1]} 10. Bb3
{[%clk 0:02:38.2]} 10... a6 {[%clk 0:02:47.5]} 11. O-O {[%clk 0:02:36.1]} 11...
d5 {[%clk 0:02:47.7]} 12. Qe2 {[%clk 0:02:30.2]} 12... d4 {[%clk 0:02:30.6]} 13.
Nb1 {[%clk 0:02:26.5]} 13... Qe7 {[%clk 0:02:08.6]} 14. a4 {[%clk 0:02:22.5]}
14... Nh5 {[%clk 0:02:03.3]} 15. Bh2 {[%clk 0:02:17.2]} 15... e5 {[%clk
0:02:03.4]} 16. a5 {[%clk 0:02:17]} 16... Nd7 {[%clk 0:02:01.7]} 17. Ba4 {[%clk
0:02:10.8]} 17... Nb8 {[%clk 0:01:31.9]} 18. Na3 {[%clk 0:02:03.5]} 18... Nc6
{[%clk 0:01:27.1]} 19. Bxc6 {[%clk 0:02:02.3]} 19... bxc6 {[%clk 0:01:28]} 20.
Nc2 {[%clk 0:01:59]} 20... Bd7 {[%clk 0:01:19.3]} 21. Ra3 {[%clk 0:01:47.1]}
21... Rab8 {[%clk 0:01:15.6]} 22. b3 {[%clk 0:01:47.6]} 22... Rb7 {[%clk
0:01:12.5]} 23. Rb1 {[%clk 0:01:46.2]} 23... f6 {[%clk 0:01:01.1]} 24. Qd2
{[%clk 0:01:28.4]} 24... g5 {[%clk 0:00:53.5]} 25. b4 {[%clk 0:01:27.4]} 25...
cxb4 {[%clk 0:00:50.8]} 26. Rxb4 {[%clk 0:01:28.3]} 26... Rxb4 {[%clk
0:00:36.6]} 27. Nxb4 {[%clk 0:01:24.2]} 27... c5 {[%clk 0:00:34.8]} 28. Nd5
{[%clk 0:01:24.1]} 28... Qd6 {[%clk 0:00:34]} 29. Nxg5 {[%clk 0:01:12.2]} 29...
fxg5 {[%clk 0:00:31.5]} 30. Qxg5 {[%clk 0:01:13.1]} 30... Nf4 {[%clk 0:00:27.2]}
31. Bxf4 {[%clk 0:01:12.6]} 31... exf4 {[%clk 0:00:27.3]} 32. Rb3 {[%clk
0:01:11.2]} 32... h6 {[%clk 0:00:25.3]} 33. Qh5 {[%clk 0:01:09.7]} 33... f3
{[%clk 0:00:23.6]} 34. Rb6 {[%clk 0:00:37.7]} 34... Qe5 {[%clk 0:00:23.8]} 35.
Qxe5 {[%clk 0:00:23.8]} 35... Bxe5 {[%clk 0:00:24.7]} 36. Rxa6 {[%clk
0:00:18.3]} 36... Rb8 {[%clk 0:00:22.7]} 37. Nb6 {[%clk 0:00:16]} 37... Be6
{[%clk 0:00:18.3]} 38. Ra7 {[%clk 0:00:11.8]} 38... fxg2 {[%clk 0:00:17.2]} 39.
Re7 {[%clk 0:00:10.7]} 39... Bxh3 {[%clk 0:00:14.3]} 40. Rxe5 {[%clk 0:00:10.9]}
40... Rb7 {[%clk 0:00:13.5]} 41. Rxc5 {[%clk 0:00:07.6]} 41... Ra7 {[%clk
0:00:12.8]} 42. Rh5 {[%clk 0:00:07.4]} 42... Bg4 {[%clk 0:00:11]} 43. Rxh6
{[%clk 0:00:07.8]} 43... Kf7 {[%clk 0:00:10.6]} 44. Rh7+ {[%clk 0:00:06.7]} 1-0